[Event "Rosh Hashanah Rapid 2022"]
[Site "Ramat Gan"]
[Date "2022.09.25"]
[Round "2.6"]
[White "Levin, Guy"]
[Black "Levitan, Tal"]
[Result "1/2-1/2"]
[ECO "C68"]
[WhiteElo "2382"]
[BlackElo "2212"]
[Annotator "TA"]
[PlyCount "122"]
[EventDate "2022.09.25"]
[EventType "rapid"]
[EventCountry "ISR"]
[SourceTitle "playchess.com"]
[Source "ChessBase"]
[SourceQuality "1"]
[TimeControl "900+5"]

{[%evp 12,122,47,18,21,9,22,24,47,41,62,61,70,71,62,46,62,60,62,53,58,58,62,58,62,61,60,51,141,135,163,166,238,237,214,34,41,-23,139,145,173,158,176,171,177,153,183,187,180,168,308,306,301,299,273,220,210,193,220,188,195,186,198,188,209,195,163,154,154,131,279,188,139,0,0,0,0,0,0,0,0,0,0,0,0,0,0,0,0,0,0,0,0,0,0,0,0,0,0,0,0,0,0,0,0,0,0,0,0,0,0,0,0]} 1. e4 {[%emt 0:00:19]} e5 {[%emt 0:00:03]} 2. Nf3 {[%emt 0:00:01]} Nc6 {[%emt 0:00:01]} 3. Bb5 {[%emt 0:00:01]} a6 {[%emt 0:00:02]} 4. Bxc6 {[%emt 0:00:02]} dxc6 {[%emt 0:00:02]} 5. O-O {[%emt 0:00:03]} Qd6 {[%emt 0:00:01]} 6. Na3 {[%emt 0:00:02]} b5 {[%emt 0:00:02] was the old line (6...Be6).} 7. d3 {[%emt 0:00:09]} Nf6 {[%emt 0:00:33] C68: Ruy Lopez: Exchange Variation, sidelines.} 8. h3 {[%emt 0:00:02]} c5 {[%emt 0:01:41]} 9. Nb1 {[%emt 0:00:07] [#]} h6 $146 {[%emt 0:01:47] White has an edge.} ({Predecessor:} 9... Be7 10. a4 c6 11. b3 O-O 12. Bb2 Nd7 13. Qe2 Bd8 14. Nc3 b4 15. Nd1 Re8 {1-0 (64) Camacho Dominguez,F-Monreal Godina,J (1860) ICCF email 2010}) 10. a4 {[%emt 0:00:03] Black must now prevent axb5.} b4 {[%emt 0:00:01]} 11. b3 {[%emt 0:00:20]} Be6 {[%emt 0:00:04]} 12. Bb2 {[%emt 0:01:06]} Nd7 {[%emt 0:00:02]} 13. Nbd2 {[%emt 0:00:01]} Be7 {[%emt 0:00:04]} 14. Qe2 {[%emt 0:00:05]} O-O {[%emt 0:01:02]} 15. Rfe1 {[%emt 0:00:06]} Bf6 {[%emt 0:01:13]} 16. Rad1 {[%emt 0:00:07]} Rfd8 {[%emt 0:01:42]} 17. Nc4 {[%emt 0:01:57]} Bxc4 {[%emt 0:00:02]} 18. dxc4 {[%emt 0:00:01]} Qe7 {[%emt 0:00:18]} 19. Qe3 {[%emt 0:00:03]} Nf8 {[%emt 0:02:17]} (19... Bg5 $14 20. Qe2 (20. Nxg5 hxg5 21. Qg3 f6 $11) 20... Bf6) 20. Rd5 $16 {[%emt 0:00:02] White is more active.} c6 {[%emt 0:00:07]} 21. Rxc5 {[%emt 0:00:33]} Rd6 {[%emt 0:01:36]} (21... Rdc8 {keeps fighting.}) 22. Bxe5 $18 {[%emt 0:00:11]} Bxe5 {[%emt 0:00:22]} 23. Nxe5 {[%emt 0:00:31]} (23. Rxe5 $18 Ne6 24. Nd4 $1 {[%mdl 512]}) 23... Ne6 $1 $14 {[%emt 0:01:06]} 24. a5 {[%emt 0:01:51]} (24. Nxc6 Qc7 $11) (24. Kh1 $14) 24... Nxc5 $2 {[%emt 0:01:57]} (24... Rdd8 $11 25. Rxc6 Nd4) 25. Qxc5 $16 {[%emt 0:00:01]} Re8 {[%emt 0:00:01]} 26. Nd3 {[%emt 0:00:09]} (26. Nxc6 $2 Qc7 27. Qxb4 Rxc6 $19) 26... Re6 {[%emt 0:00:19]} 27. Qxe7 {[%emt 0:00:17]} (27. Qxb4 Rxe4 28. Qxe7 R4xe7 29. Rxe7 Rxe7 $11) 27... R6xe7 $18 {[%emt 0:00:02][%mdl 4096] Endgame KRR-KRN} 28. f3 {[%emt 0:00:05]} f5 {[%emt 0:00:17][%cal Rf5e4] [#]} 29. e5 {[%emt 0:00:02]} (29. Nxb4 fxe4 30. Nxc6 Rc7) 29... g5 {[%emt 0:00:00]} 30. g3 {[%emt 0:00:07] Inhibits f4.} (30. Nxb4 Rxe5 31. Ra1 (31. Rxe5 Rxe5 32. Kf2 Kf7 $11) 31... Re1+ 32. Rxe1 Rxe1+ 33. Kf2 Re5 $11) 30... f4 {[%emt 0:00:02]} (30... c5 $142 31. f4 (31. Nxc5 Rxe5 32. Rxe5 Rxe5 $14) 31... Rc7) 31. gxf4 {[%emt 0:00:06]} (31. Nxb4 Rxe5 32. Ra1 (32. Rxe5 Rxe5 33. Nxc6 Rc5 $11) 32... Re3 $11) 31... gxf4 {[%emt 0:00:01]} 32. Re4 {[%emt 0:00:00]} ({And not} 32. Nxb4 Rxe5 33. Ra1 (33. Rxe5 Rxe5 34. Nxc6 Rc5 $11) 33... Re3 $11) 32... Kg7 {[%emt 0:00:23]} 33. Rxf4 {[%emt 0:00:12] Strongly threatening Rg4+.} Rxe5 {[%emt 0:00:06]} 34. Nxe5 {[%emt 0:00:01]} Rxe5 {[%emt 0:00:01] KR-KR} 35. Kf2 {[%emt 0:00:23]} Rxa5 {[%emt 0:00:02]} 36. Ke3 {[%emt 0:00:00]} Rh5 {[%emt 0:00:26]} 37. h4 {[%emt 0:00:02]} Re5+ {[%emt 0:00:17]} 38. Kd4 {[%emt 0:00:15]} Rh5 {[%emt 0:00:07]} 39. c5 {[%emt 0:00:04]} Rd5+ {[%emt 0:00:01]} 40. Kc4 {[%emt 0:00:01]} Rd2 {[%emt 0:00:01]} (40... a5 $16) 41. Kxb4 {[%emt 0:00:14] aiming for Ka5.} Rxc2 {[%emt 0:00:19] [#]} 42. h5 {[%emt 0:00:02]} (42. Rc4 $1 $16 {[%cal Rc4c2]} Ra2 43. Rd4) 42... a5+ $1 $11 {[%emt 0:00:00][%mdl 64] Decoy. The position is equal.} 43. Kxa5 {[%emt 0:00:13] White threatens b4 and mate.} Rxc5+ {[%emt 0:00:00]} 44. Kb6 {[%emt 0:00:01]} Rb5+ {[%emt 0:00:00]} 45. Kxc6 {[%emt 0:00:04]} Rxb3 {[%emt 0:00:00]} 46. Rf5 {[%emt 0:00:01]} Rd3 {[%emt 0:00:00]} ({Don't play} 46... Rc3+ 47. Kd5 $16) 47. Kc5 {[%emt 0:00:03]} Rd1 {[%emt 0:00:01]} 48. Kc4 {[%emt 0:00:02]} Rd7 {[%emt 0:00:08]} 49. Rf4 {[%emt 0:00:03]} Rd1 {[%emt 0:00:06]} 50. Rg4+ {[%emt 0:00:02]} Kf7 {[%emt 0:00:05]} 51. Rf4+ {[%emt 0:00:16]} Ke6 {[%emt 0:00:08]} 52. Rg4 {[%emt 0:00:20]} Rf1 {[%emt 0:00:12]} 53. Rg3 {[%emt 0:00:10]} Rh1 {[%emt 0:00:03]} 54. Rg6+ {[%emt 0:00:01]} Kf7 {[%emt 0:00:05]} 55. Rxh6 {[%emt 0:00:02]} Rf1 {[%emt 0:00:02]} 56. Kd5 {[%emt 0:00:43]} Rxf3 {[%emt 0:00:02]} 57. Ke4 {[%emt 0:00:00]} Rf1 {[%emt 0:00:04]} 58. Ra6 {[%emt 0:00:02]} Kg7 {[%emt 0:00:04]} 59. Ke3 {[%emt 0:00:03]} Rh1 {[%emt 0:00:03]} 60. h6+ {[%emt 0:00:02]} Rxh6 {[%emt 0:00:01]} 61. Rxh6 {[%emt 0:00:02]} Kxh6 {[%emt 0:00:01] Black defended with fortune.  Weighted Error Value: White=0.16 (very precise) /Black=0.17 (very precise)} 1/2-1/2

[Event "Rosh Hashanah Rapid 2022"]
[Site "Ramat Gan"]
[Date "2022.09.25"]
[Round "2.7"]
[White "Noy, Eyal"]
[Black "Aizenberg, Benny"]
[Result "1-0"]
[ECO "A04"]
[WhiteElo "2067"]
[BlackElo "2412"]
[Annotator "TA"]
[PlyCount "71"]
[EventDate "2022.09.25"]
[EventType "rapid"]
[EventCountry "ISR"]
[SourceTitle "playchess.com"]
[Source "ChessBase"]
[SourceQuality "1"]
[TimeControl "900+5"]

{[%evp 11,71,0,0,0,7,0,3,0,0,-50,31,-4,24,6,0,-1,-8,-17,-18,-15,0,11,10,0,-4,0,0,-15,-16,-10,-12,-16,-10,-13,0,0,0,0,10,-32,0,-11,86,0,0,0,0,0,0,0,0,0,0,0,0,0,0,0,29999,0,10,0]} 1. Nf3 {[%emt 0:00:29]} f5 {[%emt 0:00:04]} 2. g3 {[%emt 0:00:05]} Nf6 {[%emt 0:00:02]} 3. Bg2 {[%emt 0:00:01]} g6 {[%emt 0:00:01]} 4. O-O {[%emt 0:00:03]} Bg7 {[%emt 0:00:01]} 5. d3 {[%emt 0:00:02]} O-O {[%emt 0:00:04]} 6. Nbd2 {[%emt 0:00:01]} d6 {[%emt 0:00:05]} 7. e4 {[%emt 0:00:09] A04: Unusual lines after 1 Nf3 and King's Indian Attack.} e5 {[%emt 0:00:01]} 8. c3 {[%emt 0:00:08]} Nc6 {[%emt 0:00:19]} 9. Re1 {[%emt 0:00:38]} f4 {[%emt 0:00:26]} 10. d4 {[%emt 0:00:22] [#]} (10. Nf1 $11) 10... h6 $146 {[%emt 0:00:17]} ({Better is} 10... Nh5 $1 $15) ({Predecessor:} 10... Nh5 11. Qb3+ Kh8 12. d5 Nb8 13. c4 c5 14. dxc6 Nxc6 15. Qd3 Be6 16. b3 Nb4 {1-0 (43) Darmin,D (2376)-Imashev,I (2283) Ufa 2012}) 11. Nc4 {[%emt 0:00:23][%cal Rd4e5]} (11. b4 $5 {[%cal Rb4b5]}) 11... Nd7 {[%emt 0:02:35]} 12. dxe5 {[%emt 0:02:15]} dxe5 {[%emt 0:00:19]} 13. Qd5+ {[%emt 0:00:08]} Kh7 {[%emt 0:00:01]} 14. gxf4 {[%emt 0:00:07]} exf4 {[%emt 0:00:02]} 15. e5 {[%emt 0:00:13]} Nb6 {[%emt 0:00:22]} (15... Qe7 {looks sharper.} 16. b3 Nb6 17. Nxb6 axb6 18. Qe4 Bg4) 16. Nxb6 {[%emt 0:00:52]} axb6 {[%emt 0:00:02]} 17. Qxd8 {[%emt 0:00:02]} (17. Qe4 {is interesting.} Bf5 18. Qxf4 Ra5 19. Qh4) 17... Nxd8 {[%emt 0:00:02][%cal Bc6d8,Bd8e6,Be6d4,Bd4c2][%mdl 32]} 18. Nd4 {[%emt 0:00:11]} Ne6 {[%emt 0:00:20]} 19. Bxb7 {[%emt 0:01:32] [#]} Nxd4 $1 {[%emt 0:00:22]} 20. Bxa8 {[%emt 0:00:02]} Nc2 {[%emt 0:00:01][%csl LRa1,LRe1]} 21. Bd2 {[%emt 0:00:11]} Nxa1 {[%emt 0:00:02]} 22. Rxa1 {[%emt 0:00:13]} Bxe5 {[%emt 0:00:01]} 23. Re1 {[%emt 0:00:18]} Bd6 {[%emt 0:00:08][%cal Oc8e6]} 24. Bc6 {[%emt 0:01:08]} Bh3 {[%emt 0:00:38]} 25. Re8 {[%emt 0:02:31]} Rf5 {[%emt 0:01:05]} 26. c4 {[%emt 0:01:01]} f3 {[%emt 0:03:39]} (26... Rg5+ $11 27. Kh1 Re5) 27. Bc3 {[%emt 0:02:13]} (27. Bd5 $16 {And now Bg8+ would win.} Rf8 28. Rxf8 Bxf8 29. Bf4 (29. Bxf3 g5 $16)) 27... Rg5+ $11 {[%emt 0:02:17]} 28. Kh1 {[%emt 0:00:01][%csl Gc3][%cal Re8h8]} Bg2+ {[%emt 0:00:01]} 29. Kg1 {[%emt 0:00:00][%csl Gc3][%cal Re8h8]} Bh3+ {[%emt 0:00:00]} 30. Kh1 {[%emt 0:00:01][%csl Gc3][%cal Re8h8]} Bg2+ {[%emt 0:00:01]} 31. Kg1 {[%emt 0:00:00][%csl Gc3][%cal Re8h8]} Bh3+ {[%emt 0:00:00]} 32. Kh1 {[%emt 0:00:01][%csl Gc3][%cal Re8h8]} Bg2+ {[%emt 0:00:03]} 33. Kg1 {[%emt 0:00:00][%csl Gc3][%cal Re8h8]} Bh3+ {[%emt 0:00:01]} 34. Kh1 {[%emt 0:00:01][%csl Gc3][%cal Re8h8]} Rf5 $2 {[%emt 0:04:33][%mdl 8192] [#]} (34... Bg2+ $11 35. Kg1) 35. Kg1 $2 {[%emt 0:02:38]} (35. Rh8# {mates}) 35... Bf8 {[%emt 0:00:05]} 36. Be4 {[%emt 0:00:05][%mdl 32768] Weighted Error Value: White=0.38/Black=0.36. Loss on time!?} 1-0

[Event "Rosh Hashanah Rapid 2022"]
[Site "Ramat Gan"]
[Date "2022.09.25"]
[Round "2.8"]
[White "Veinberg, Nimrod"]
[Black "After, Asaf"]
[Result "1-0"]
[ECO "A40"]
[WhiteElo "2400"]
[BlackElo "2056"]
[Annotator "TA"]
[PlyCount "87"]
[EventDate "2022.09.25"]
[EventType "rapid"]
[EventCountry "ISR"]
[SourceTitle "playchess.com"]
[Source "ChessBase"]
[SourceQuality "1"]
[TimeControl "900+5"]

{[%evp 12,87,25,25,27,11,8,0,0,-18,2,0,4,-43,-41,-43,-39,-39,-30,-37,10,24,51,0,0,-199,-209,-807,-801,-778,-489,-477,-474,-483,-484,-467,-290,-264,-285,-278,-144,-161,-165,-159,-119,-256,-174,-203,-159,-177,-55,-64,0,0,53,45,48,37,31,26,79,69,78,88,642,604,851,845,816,791,1489,946,1367,1277,6622,5708,3081,2093]} 1. Nf3 {[%emt 0:00:01]} b5 {[%emt 0:00:01]} 2. d4 {[%emt 0:00:15]} Bb7 {[%emt 0:00:02]} 3. e3 {[%emt 0:00:05]} a6 {[%emt 0:00:02]} 4. a4 {[%emt 0:00:08]} b4 {[%emt 0:00:04]} 5. c4 {[%emt 0:00:05]} e6 {[%emt 0:00:06]} 6. Bd3 {[%emt 0:00:05]} Nf6 {[%emt 0:00:02]} 7. Nbd2 {[%emt 0:00:03]} c5 {[%emt 0:00:03] A40: Unusual replies to 1 d4.} 8. O-O {[%emt 0:00:14]} d6 {[%emt 0:00:02]} 9. Qe2 {[%emt 0:00:06]} Nbd7 {[%emt 0:00:02] The position is equal.} 10. b3 {[%emt 0:00:14]} Be7 {[%emt 0:00:02]} 11. Bb2 {[%emt 0:00:01][%cal Od4d5]} (11. Ng5 {seems wilder.} O-O 12. Bb2 h6 13. Nge4) 11... O-O {[%emt 0:00:02]} 12. e4 {[%emt 0:00:23]} (12. Ng5 $11) 12... cxd4 $15 {[%emt 0:00:02]} 13. Nxd4 {[%emt 0:00:02]} Nc5 {[%emt 0:01:14]} 14. Bc2 {[%emt 0:00:32] [#]} Qb6 $146 {[%emt 0:00:21]} ({Predecessor:} 14... Nfd7 15. f4 Bf6 16. N2f3 e5 17. Nf5 exf4 18. N3d4 Be5 19. Qg4 Qf6 20. Rxf4 Ne6 {0-1 (27) Alonso Fernandez,M (2214)-Mateo,R (2434) Collado Villalba 2005}) 15. Rad1 {[%emt 0:00:23]} e5 {[%emt 0:14:15]} (15... Nfd7 $15 {was preferrable.}) 16. Nf5 $11 {[%emt 0:00:06]} Rfe8 {[%emt 0:00:00]} 17. Qe3 {[%emt 0:01:12]} (17. Nxe7+ $14 Rxe7 18. Kh1) 17... Bf8 {[%emt 0:00:00]} 18. f4 $2 {[%emt 0:02:46]} (18. Qg5 $11) 18... Ng4 $19 {[%emt 0:00:00]} 19. Qg3 {[%emt 0:00:53]} (19. Qf3 Nxe4+ 20. Bd4 exd4 21. Bxe4 Bxe4 22. Nxe4) 19... Nxe4+ $1 {[%emt 0:00:00]} 20. Bd4 {[%emt 0:00:33]} Nxg3 {[%emt 0:00:00]} 21. Bxb6 {[%emt 0:00:01]} Nxf1 {[%emt 0:00:00]} 22. Nxf1 {[%emt 0:00:02]} exf4 {[%emt 0:00:00] Threatens to win with ...Re2.} 23. h3 {[%emt 0:00:05]} Ne3 {[%emt 0:00:00]} ({But not} 23... Re2 $2 24. Rd2 Rae8 25. hxg4 Rxd2 26. Nxd2 $19) 24. N1xe3 {[%emt 0:00:04]} fxe3 {[%emt 0:00:00]} 25. Nxe3 {[%emt 0:00:02]} Be4 {[%emt 0:00:00]} ({Black should try} 25... g6 $19 {...Re6 is the strong threat.} 26. Kf2 Re6) 26. Bxe4 $17 {[%emt 0:00:14]} Rxe4 {[%emt 0:00:00]} 27. Nd5 {[%emt 0:00:38]} Rae8 {[%emt 0:00:00] White must now prevent ...Re1+.} 28. Rd3 {[%emt 0:00:10]} (28. Kf1 $17 {is a better defense.}) 28... Be7 {[%emt 0:00:00]} 29. Nxb4 {[%emt 0:00:23]} Re1+ {[%emt 0:00:00]} 30. Kf2 {[%emt 0:01:09]} Bh4+ {[%emt 0:00:00]} (30... Bg5 $1 $19 {Hoping for ...f5.} 31. g3 R8e2+ 32. Kf3 Rb2) 31. g3 $15 {[%emt 0:00:01]} R1e2+ {[%emt 0:00:00]} (31... Bg5 $1 $15 32. h4 Bh6 33. Rxd6 f5) 32. Kf3 $11 {[%emt 0:00:04]} Bf6 {[%emt 0:00:00]} (32... Bg5 $11) 33. Nxa6 $14 {[%emt 0:00:06]} Re1 {[%emt 0:00:00]} 34. Nc7 {[%emt 0:00:25][%mdl 1024] White has compensation.} R8e5 {[%emt 0:00:00]} 35. g4 {[%emt 0:01:31]} Bh4 {[%emt 0:00:00] [#]} (35... Rf1+ $11 36. Kg2 Rfe1) 36. a5 $1 $16 {[%emt 0:01:07]} Rf1+ {[%emt 0:00:00]} 37. Kg2 {[%emt 0:00:01]} Rf6 {[%emt 0:00:00][%mdl 8192] [#]} (37... Ra1 $16) 38. Rd2 $1 $18 {[%emt 0:00:15] White is clearly winning.} Bg5 {[%emt 0:00:00]} 39. Ra2 {[%emt 0:00:01] Strongly threatening a6.} d5 {[%emt 0:00:24]} 40. cxd5 {[%emt 0:01:09]} Be3 {[%emt 0:00:12]} 41. Bxe3 {[%emt 0:00:28]} Rxe3 {[%emt 0:00:01]} 42. a6 {[%emt 0:00:02][%cal Ba5a6,Ba6a7][%mdl 32]} Rff3 {[%emt 0:00:01]} 43. a7 {[%emt 0:00:09]} Rg3+ {[%emt 0:00:02]} 44. Kf1 {[%emt 0:00:04] Never resign too early!  Weighted Error Value: White=0.37/Black=0.67} 1-0

[Event "Rosh Hashanah Rapid 2022"]
[Site "Ramat Gan"]
[Date "2022.09.25"]
[Round "2.9"]
[White "Gurevich, Yosef"]
[Black "Mindlin, Alon"]
[Result "0-1"]
[ECO "E11"]
[WhiteElo "1914"]
[BlackElo "2426"]
[Annotator "TA"]
[PlyCount "117"]
[EventDate "2022.09.25"]
[EventType "rapid"]
[EventCountry "ISR"]
[SourceTitle "playchess.com"]
[Source "ChessBase"]
[SourceQuality "1"]
[TimeControl "900+5"]

{[%evp 24,117,21,0,15,4,16,0,31,22,28,10,46,25,27,35,39,38,108,34,49,-7,-6,-7,0,-12,-16,-17,-30,-22,-16,-16,-14,-20,-28,-30,-40,-64,-61,-58,-4,-35,-35,-36,-45,-50,-43,-103,-102,-189,-166,-363,-318,-373,-304,-356,-329,-399,-399,-399,-399,-793,-459,-773,-584,-677,-942,-430,-429,-413,-956,-819,-399,-399,-391,-29991,-204,-193,-187,-168,-68,-256,-239,-586,-375,-381,-367,-327,-68,-68,-68,-68,-67,-65,-48,-29987]} 1. d4 {[%emt 0:00:02]} Nf6 {[%emt 0:00:02]} 2. c4 {[%emt 0:00:01]} e6 {[%emt 0:00:04]} 3. Nf3 {[%emt 0:00:01]} Bb4+ {[%emt 0:00:02]} 4. Bd2 {[%emt 0:00:01]} Qe7 {[%emt 0:00:02]} 5. g3 {[%emt 0:00:01]} Nc6 {[%emt 0:00:01]} 6. Bg2 {[%emt 0:00:01]} Bxd2+ {[%emt 0:00:03]} 7. Nbxd2 {[%emt 0:00:03]} d6 {[%emt 0:00:02]} 8. e4 {[%emt 0:00:01]} O-O {[%emt 0:00:03]} 9. O-O {[%emt 0:00:03]} e5 {[%emt 0:00:01]} 10. d5 {[%emt 0:00:03]} Nb8 {[%emt 0:00:02]} 11. Ne1 {[%emt 0:00:05]} a5 {[%emt 0:00:02]} 12. Nd3 {[%emt 0:00:01]} Na6 {[%emt 0:00:01]} 13. Qe2 {[%emt 0:01:33]} Bg4 {[%emt 0:01:29] E11: Bogo-Indian.} 14. f3 {[%emt 0:00:06]} Bd7 {[%emt 0:00:01]} 15. f4 {[%emt 0:00:46]} b5 {[%emt 0:00:23] The position is equal.} 16. fxe5 {[%emt 0:00:59]} dxe5 {[%emt 0:00:03] [#]} 17. Rac1 $146 {[%emt 0:01:31]} ({Predecessor:} 17. h3 Nc5 18. Kh2 bxc4 19. Nxc5 Qxc5 20. Qxc4 Qb6 21. Qc3 Rfe8 22. Nc4 Qb4 23. Rfc1 Re7 24. Qxb4 axb4 {1-0 (37) Mulyar,M (2388)-Carreto Nieto,G (2224) Chicago 2016}) 17... bxc4 {[%emt 0:01:35]} 18. Nxc4 {[%emt 0:00:03]} Bb5 {[%emt 0:00:32]} 19. a4 {[%emt 0:02:56]} Bxc4 {[%emt 0:00:38]} 20. Rxc4 {[%emt 0:00:01]} Rab8 {[%emt 0:00:28]} ({Black should play} 20... Rfb8 $14) 21. Bh3 {[%emt 0:00:59]} (21. Rfc1 $16) 21... Nb4 {[%emt 0:00:29]} 22. Rfc1 {[%emt 0:02:40]} (22. Nf2 $1 $14) 22... Nxd3 $11 {[%emt 0:00:50]} 23. Qxd3 {[%emt 0:00:04]} Rxb2 {[%emt 0:00:02]} 24. Rxc7 {[%emt 0:00:07]} Qb4 {[%emt 0:00:02][%csl LRa4,LRe4]} 25. R7c4 {[%emt 0:00:22]} Qb6+ {[%emt 0:00:01]} 26. Kh1 $1 {[%emt 0:00:43]} (26. Rc5 $2 Rb4 27. Kg2 Nxe4 $19) 26... Qf2 {[%emt 0:02:16][%csl Gb2][%cal Rf2h2]} 27. R4c2 {[%emt 0:00:29]} Rxc2 {[%emt 0:00:02]} 28. Qxc2 {[%emt 0:01:03]} Qxc2 {[%emt 0:01:07]} 29. Rxc2 {[%emt 0:00:01]} Nxe4 {[%emt 0:00:01][%mdl 4096] Endgame KRB-KRN} 30. Bg2 {[%emt 0:00:15]} Nd6 {[%emt 0:00:21]} 31. Rc6 {[%emt 0:00:25]} Nf5 {[%emt 0:00:16]} (31... Rd8 $15) 32. Be4 {[%emt 0:00:30]} Nd4 {[%emt 0:00:02]} 33. Rc5 {[%emt 0:00:34]} f5 {[%emt 0:00:07]} 34. Bd3 {[%emt 0:00:33]} Kf7 {[%emt 0:01:05]} 35. Rxa5 {[%emt 0:00:17]} (35. d6 $15) 35... e4 $17 {[%emt 0:00:02]} 36. Ra7+ {[%emt 0:00:21]} (36. Bb5 $17 {was worth a try.}) 36... Kf6 $19 {[%emt 0:00:05]} 37. Ra6+ $2 {[%emt 0:00:02]} (37. Bb5 {might work better.}) 37... Ke5 {[%emt 0:00:09]} 38. Bf1 {[%emt 0:00:24]} e3 {[%emt 0:00:29]} 39. Ra7 {[%emt 0:00:01]} Kd6 {[%emt 0:00:42] Against Re7} (39... Kxd5 $2 40. Re7 $17) 40. Rxg7 {[%emt 0:00:04]} Rb8 {[%emt 0:00:02] ...Rb1 is the strong threat.} (40... e2 41. Bxe2 Nxe2 42. Rxh7 $17) 41. Rxh7 {[%emt 0:00:11]} Rb1 {[%emt 0:00:13]} 42. Kg2 $2 {[%emt 0:00:01]} (42. Rh6+ Kxd5 43. Kg2) 42... Rb2+ {[%emt 0:00:01]} ({And not} 42... e2 43. Bxe2 Rb2 44. h4 $17 (44. Rh6+ $2 Kxd5 45. Rh5 Rxe2+ 46. Kf1 Ke6 $17)) 43. Kg1 {[%emt 0:00:03]} (43. Kh1 $142 Kxd5 44. Rh5 (44. Rd7+ $2 Ke4 $19)) 43... Nf3+ {[%emt 0:00:01]} 44. Kh1 {[%emt 0:00:01]} e2 {[%emt 0:00:45]} 45. Bxe2 {[%emt 0:00:03]} Rxe2 {[%emt 0:00:01] KRN-KR} 46. a5 {[%emt 0:00:08]} Ra2 {[%emt 0:00:06]} 47. a6 {[%emt 0:00:01]} Kxd5 {[%emt 0:00:10]} (47... Kc5 $142 48. Rh5 Nd4) 48. a7 {[%emt 0:00:07]} Ke4 {[%emt 0:00:02]} 49. Re7+ $2 {[%emt 0:00:01] [#]} (49. Rh8 $19 Rxa7 50. Re8+ Kd3 51. Kg2) 49... Ne5 $2 {[%emt 0:00:01]} (49... Kd4 {mates} 50. Rh7 Ke3 51. Rh8 Rxa7 52. Re8+ Kf2 53. Re2+ Kxe2 54. Kg2 Ra1 55. h4 Rg1+ 56. Kh3 Rh1+ 57. Kg2 Rh2#) 50. h4 {[%emt 0:00:08]} Kd5 {[%emt 0:00:10] White must now prevent ...Kd6.} 51. Kg1 {[%emt 0:00:06]} Nc6 {[%emt 0:00:04]} (51... Kd6 $19 52. Rb7 Ng4) 52. Rd7+ {[%emt 0:00:12] [#]} (52. Rg7 $15) 52... Ke4 $1 {[%emt 0:00:06]} 53. Rg7 $2 {[%emt 0:00:09]} (53. Rf7) 53... Nxa7 {[%emt 0:01:35]} 54. h5 {[%emt 0:00:00]} Nc6 {[%emt 0:00:03] Threatens to win with ...Kf3.} 55. h6 {[%emt 0:00:07]} Ra8 $2 {[%emt 0:00:01]} ({Black should try} 55... Ne5 $19 {( -> ...Kf3)} 56. Re7 Kd5) 56. h7 $15 {[%emt 0:00:04] Black is slightly better.} Rh8 {[%emt 0:00:04]} 57. Kf2 {[%emt 0:00:01]} Ne5 {[%emt 0:00:06] Strongly threatening ...Ng4+.} 58. Re7 {[%emt 0:00:03]} Kd5 {[%emt 0:00:01]} 59. Rf7 $2 {[%emt 0:00:22][%mdl 8192] Weighted Error Value: White=0.64/Black=0.55} 0-1

[Event "Rosh Hashanah Rapid 2022"]
[Site "Ramat Gan"]
[Date "2022.09.25"]
[Round "2.10"]
[White "Ben Ari, Yannay"]
[Black "Duchan, Yoav"]
[Result "1-0"]
[ECO "B33"]
[WhiteElo "2387"]
[BlackElo "1764"]
[Annotator "TA"]
[PlyCount "71"]
[EventDate "2022.09.25"]
[EventType "rapid"]
[EventCountry "ISR"]
[SourceTitle "playchess.com"]
[Source "ChessBase"]
[SourceQuality "1"]
[TimeControl "900+5"]

{[%evp 23,71,18,32,28,34,40,47,10,22,45,70,64,63,54,63,61,61,61,61,61,76,78,112,85,119,119,119,114,115,116,150,124,131,123,139,139,156,142,139,136,177,167,192,178,221,201,288,276,712,692]} 1. e4 {[%emt 0:00:09] ChessBase} c5 {[%emt 0:00:01]} 2. Nf3 {[%emt 0:00:05][%cal Bg1f3,Bf3d4,Bd4b5,Bb5a3,Ba3c2][%mdl 32]} Nc6 3. d4 {[%emt 0:00:05]} cxd4 {[%emt 0:00:10]} 4. Nxd4 {[%emt 0:00:05]} Nf6 {[%emt 0:00:05]} 5. Nc3 {[%emt 0:00:05]} e5 {[%emt 0:15:14]} 6. Ndb5 d6 {[%emt 0:00:00]} 7. Bg5 {[%emt 0:00:09]} a6 {[%emt 0:00:00]} 8. Na3 {[%emt 0:00:02]} b5 {[%emt 0:00:00]} 9. Nd5 {[%emt 0:00:01]} Be7 {[%emt 0:00:00]} 10. Bxf6 {[%emt 0:00:01]} Bxf6 {[%emt 0:00:00]} 11. c3 {[%emt 0:00:01]} O-O {[%emt 0:00:00]} 12. Nc2 {[%emt 0:00:02]} Be6 {[%emt 0:00:00]} 13. a4 {[%emt 0:03:31] B33: Sicilian: Pelikan and Sveshnikov Variations.} Bxd5 {[%emt 0:00:00]} 14. Qxd5 {[%emt 0:00:11]} Ne7 {[%emt 0:00:00]} 15. Qd3 {[%emt 0:00:02] White is slightly better.} d5 {[%emt 0:00:00] [#]} 16. Be2 $146 {[%emt 0:01:10]} ({Predecessor:} 16. exd5 Nxd5 17. axb5 e4 18. Qd1 axb5 19. Rxa8 Qxa8 20. Bxb5 Bxc3+ 21. bxc3 Nxc3 22. Qh5 Nxb5 {½-½ (65) Pelzer,J-Eisinger,M Heilbronn 1938 EXT 2015 [ChessBase]}) 16... Rb8 {[%emt 0:00:00]} 17. axb5 {[%emt 0:00:57]} axb5 {[%emt 0:00:00]} 18. O-O {[%emt 0:00:33]} dxe4 {[%emt 0:00:00]} 19. Qxe4 {[%emt 0:00:04]} Qd5 {[%emt 0:00:00]} 20. Qxd5 {[%emt 0:04:47] White is more active.} Nxd5 {[%emt 0:00:00]} 21. Rfd1 {[%emt 0:00:03]} Nf4 {[%emt 0:00:00]} 22. Bf1 {[%emt 0:00:03]} Rfd8 {[%emt 0:00:00]} 23. Nb4 {[%emt 0:00:13] Inhibits Nd5.} Kf8 {[%emt 0:00:00]} 24. Rxd8+ {[%emt 0:01:03]} Rxd8 {[%emt 0:00:00]} 25. Nc6 {[%emt 0:00:02]} ({Much worse is} 25. Bxb5 $6 Rd2 $14) 25... Rc8 {[%emt 0:00:00]} 26. Bxb5 {[%emt 0:00:03]} e4 {[%emt 0:00:00]} 27. g3 {[%emt 0:01:59]} Ne6 {[%emt 0:00:00]} 28. Kg2 {[%emt 0:00:27]} Nd8 {[%emt 0:00:00]} 29. Nb4 {[%emt 0:00:25]} Rb8 {[%emt 0:00:00]} 30. Ra5 {[%emt 0:01:01]} Nb7 {[%emt 0:00:00]} 31. Ra7 {[%emt 0:00:02]} Nd8 {[%emt 0:00:00]} 32. Bc4 {[%emt 0:00:05]} Bg5 {[%emt 0:00:00]} 33. Bd5 {[%emt 0:00:09]} Bc1 {[%emt 0:00:00] [#]} 34. Ra2 {[%emt 0:00:03]} ({Don't play} 34. Bxe4 $6 Bxb2 35. Nd5 (35. Bxh7 g6 $11) 35... g6 $16) 34... e3 {[%emt 0:00:17]} (34... f5 $142 35. f3 exf3+ 36. Kxf3 Rb5) 35. Nd3 $18 {[%emt 0:00:02]} Rb6 $2 {[%emt 0:01:35]} (35... Bd2 36. fxe3 Bxe3) 36. Nxc1 {[%emt 0:00:05] Weighted Error Value: White=0.07 (flawless) /Black=0.21 (precise)} 1-0